[Event "Swedish Chess Championship 2019: Veteran-SM 65+"]
[Site "Stiga Sports Arena, Arenatorget 1, Eskilstuna, Sweden"]
[Date "2019.07.06"]
[Round "1.1"]
[White "Gromark, Jonas"]
[Black "Andersson, Kjell-Ake"]
[Result "0-1"]
[TimeControl "90 minutes for 40 moves + 30 minutes for the rest of the game + 30 seconds per move from move one"]
[WhiteFideId "137122733"]
[BlackFideId "1713825"]
[WhiteElo "1833"]
[BlackElo "1859"]

1. e4 {[%clk 01:30:30]} {[%emt 00:08:45]} e6 {[%clk 01:30:29]} {[%emt
00:00:33]} 2. d3 {[%clk 01:30:19]} {[%emt 00:00:42]} d5 {[%clk 01:30:13]}
{[%emt 00:00:46]} 3. Nd2 {[%clk 01:30:10]} {[%emt 00:00:40]} c5 {[%clk
01:30:20]} {[%emt 00:00:22]} 4. Ngf3 {[%clk 01:29:20]} {[%emt 00:01:20]} Nc6
{[%clk 01:30:16]} {[%emt 00:00:34]} 5. g3 {[%clk 01:28:28]} {[%emt 00:01:22]}
Nf6 {[%clk 01:28:38]} {[%emt 00:02:08]} 6. Bg2 {[%clk 01:28:07]} {[%emt
00:00:51]} Be7 {[%clk 01:28:15]} {[%emt 00:00:53]} 7. O-O {[%clk 01:27:52]}
{[%emt 00:00:45]} O-O {[%clk 01:28:35]} {[%emt 00:00:10]} 8. Re1 {[%clk
01:25:14]} {[%emt 00:03:08]} Bd7 {[%clk 01:26:57]} {[%emt 00:02:08]} 9. e5
{[%clk 01:22:08]} {[%emt 00:03:36]} Ne8 {[%clk 01:26:05]} {[%emt 00:01:21]} 10.
c3 {[%clk 01:16:11]} {[%emt 00:06:27]} b5 {[%clk 01:22:41]} {[%emt 00:03:53]}
11. d4 {[%clk 01:12:54]} {[%emt 00:03:48]} c4 {[%clk 01:21:35]} {[%emt
00:01:36]} 12. Nf1 {[%clk 01:04:13]} {[%emt 00:09:12]} a5 {[%clk 01:17:28]}
{[%emt 00:04:37]} 13. h4 {[%clk 01:01:47]} {[%emt 00:02:56]} Nc7 {[%clk
01:11:33]} {[%emt 00:06:25]} 14. Bf4 {[%clk 00:59:22]} {[%emt 00:02:56]} b4
{[%clk 01:09:00]} {[%emt 00:03:02]} 15. h5 {[%clk 00:54:31]} {[%emt 00:05:21]}
Nb5 {[%clk 01:05:43]} {[%emt 00:03:48]} 16. Qd2 {[%clk 00:50:38]} {[%emt
00:04:23]} a4 {[%clk 01:01:20]} {[%emt 00:04:52]} 17. Re3 {[%clk 00:46:26]}
{[%emt 00:04:43]} a3 {[%clk 00:56:07]} {[%emt 00:05:43]} 18. Rb1 {[%clk
00:35:02]} {[%emt 00:11:54]} axb2 {[%clk 00:52:19]} {[%emt 00:04:19]} 19. Qxb2
{[%clk 00:30:27]} {[%emt 00:05:05]} Nxc3 {[%clk 00:50:21]} {[%emt 00:02:28]} 20.
Ra1 {[%clk 00:28:51]} {[%emt 00:02:06]} Ra3 {[%clk 00:48:04]} {[%emt 00:02:47]}
21. N1d2 {[%clk 00:24:00]} {[%emt 00:05:21]} Qa8 {[%clk 00:46:35]} {[%emt
00:01:59]} 22. Qc1 {[%clk 00:15:35]} {[%emt 00:08:56]} Rxa2 {[%clk 00:44:56]}
{[%emt 00:02:08]} 23. Rxa2 {[%clk 00:15:47]} {[%emt 00:00:19]} Qxa2 {[%clk
00:45:05]} {[%emt 00:00:20]} 0-1

[Event "Swedish Chess Championship 2019: Veteran-SM 65+"]
[Site "Stiga Sports Arena, Arenatorget 1, Eskilstuna, Sweden"]
[Date "2019.07.06"]
[Round "1.2"]
[White "Svensson, Hakan"]
[Black "Lagerborg, Krister"]
[Result "0-1"]
[TimeControl "90 minutes for 40 moves + 30 minutes for the rest of the game + 30 seconds per move from move one"]
[WhiteFideId "1714201"]
[BlackFideId "1712411"]
[WhiteElo "2056"]
[BlackElo "2129"]

1. d4 {[%clk 01:30:52]} {[%emt 00:00:06]} Nf6 {[%clk 01:30:54]} {[%emt
00:00:08]} 2. Bg5 {[%clk 01:31:13]} {[%emt 00:00:09]} c6 {[%clk 01:31:16]}
{[%emt 00:00:08]} 3. Bxf6 {[%clk 01:31:38]} {[%emt 00:00:05]} gxf6 {[%clk
01:31:45]} {[%emt 00:00:02]} 4. e3 {[%clk 01:31:57]} {[%emt 00:00:10]} d6
{[%clk 01:31:43]} {[%emt 00:00:32]} 5. c4 {[%clk 01:28:32]} {[%emt 00:03:54]}
Nd7 {[%clk 01:31:47]} {[%emt 00:00:27]} 6. Nc3 {[%clk 01:27:17]} {[%emt
00:01:44]} f5 {[%clk 01:31:30]} {[%emt 00:00:47]} 7. Bd3 {[%clk 01:19:56]}
{[%emt 00:07:51]} Nf6 {[%clk 01:30:19]} {[%emt 00:01:41]} 8. Qf3 {[%clk
01:20:10]} {[%emt 00:00:16]} e6 {[%clk 01:27:51]} {[%emt 00:02:58]} 9. d5
{[%clk 01:16:21]} {[%emt 00:04:20]} Qb6 {[%clk 01:20:13]} {[%emt 00:08:08]} 10.
Nge2 {[%clk 01:14:05]} {[%emt 00:02:45]} Bd7 {[%clk 01:06:32]} {[%emt
00:14:11]} 11. O-O {[%clk 01:07:22]} {[%emt 00:07:13]} O-O-O {[%clk 01:04:56]}
{[%emt 00:02:06]} 12. b4 {[%clk 01:05:11]} {[%emt 00:02:41]} Ng4 {[%clk
01:01:55]} {[%emt 00:03:32]} 13. Nd4 {[%clk 00:42:14]} {[%emt 00:23:26]} Bg7
{[%clk 00:57:37]} {[%emt 00:04:48]} 14. dxc6 {[%clk 00:25:29]} {[%emt
00:17:15]} Bxc6 {[%clk 00:55:18]} {[%emt 00:02:50]} 15. Nxc6 {[%clk 00:23:42]}
{[%emt 00:02:17]} bxc6 {[%clk 00:47:51]} {[%emt 00:07:57]} 16. c5 {[%clk
00:20:50]} {[%emt 00:03:22]} Qc7 {[%clk 00:44:21]} {[%emt 00:03:59]} 17. Rac1
{[%clk 00:12:50]} {[%emt 00:08:29]} dxc5 {[%clk 00:42:31]} {[%emt 00:02:21]} 18.
Ba6+ {[%clk 00:12:50]} {[%emt 00:00:29]} Kd7 {[%clk 00:42:25]} {[%emt
00:00:36]} 19. g3 {[%clk 00:11:28]} {[%emt 00:01:53]} Bxc3 {[%clk 00:34:04]}
{[%emt 00:08:51]} 20. Rxc3 {[%clk 00:11:54]} {[%emt 00:00:04]} cxb4 {[%clk
00:33:39]} {[%emt 00:00:56]} 21. Rc4 {[%clk 00:11:32]} {[%emt 00:00:52]} Ne5
{[%clk 00:28:11]} {[%emt 00:05:57]} 22. Rd4+ {[%clk 00:11:48]} {[%emt
00:00:14]} Ke7 {[%clk 00:28:00]} {[%emt 00:00:41]} 23. Qf4 {[%clk 00:12:14]}
{[%emt 00:00:05]} c5 {[%clk 00:24:14]} {[%emt 00:04:15]} 24. Qg5+ {[%clk
00:11:35]} {[%emt 00:01:08]} f6 {[%clk 00:23:35]} {[%emt 00:01:09]} 25. Qg7+
{[%clk 00:11:23]} {[%emt 00:00:42]} Nf7 {[%clk 00:23:59]} {[%emt 00:00:08]} 26.
Rxd8 {[%clk 00:09:58]} {[%emt 00:01:54]} Rxd8 {[%clk 00:23:41]} {[%emt
00:00:48]} 27. Rc1 {[%clk 00:08:32]} {[%emt 00:01:56]} Rd2 {[%clk 00:21:04]}
{[%emt 00:03:07]} 28. Bc4 {[%clk 00:06:54]} {[%emt 00:02:08]} h6 {[%clk
00:19:02]} {[%emt 00:02:31]} 29. Bb3 {[%clk 00:06:11]} {[%emt 00:01:13]} Qe5
{[%clk 00:17:23]} {[%emt 00:02:09]} 30. Rc4 {[%clk 00:05:21]} {[%emt 00:01:20]}
Qa1+ {[%clk 00:14:14]} {[%emt 00:03:39]} 31. Kg2 {[%clk 00:05:46]} {[%emt
00:00:05]} Qe1 {[%clk 00:14:38]} {[%emt 00:00:06]} 32. Rf4 {[%clk 00:04:39]}
{[%emt 00:01:37]} Qxe3 {[%clk 00:14:44]} {[%emt 00:00:24]} 33. Qg8 {[%clk
00:02:37]} {[%emt 00:02:33]} Qe5 {[%clk 00:13:50]} {[%emt 00:01:22]} 34. Qc8
{[%clk 00:01:22]} {[%emt 00:01:45]} Rd7 {[%clk 00:12:50]} {[%emt 00:01:30]} 35.
Ba4 {[%clk 00:01:14]} {[%emt 00:00:38]} Qd5+ {[%clk 00:10:54]} {[%emt
00:02:25]} 36. Kg1 {[%clk 00:01:35]} {[%emt 00:00:10]} Rd8 {[%clk 00:10:24]}
{[%emt 00:01:00]} 37. Qc7+ {[%clk 00:01:58]} {[%emt 00:00:07]} Kf8 {[%clk
00:10:30]} {[%emt 00:00:24]} 38. Bb3 {[%clk 00:02:24]} {[%emt 00:00:05]} Qd6
{[%clk 00:07:47]} {[%emt 00:03:12]} 39. Qxa7 {[%clk 00:02:48]} {[%emt
00:00:07]} Rd7 {[%clk 00:07:10]} {[%emt 00:01:06]} 40. Qa8+ {[%clk 00:01:32]}
{[%emt 00:01:46]} Kg7 {[%clk 00:07:23]} {[%emt 00:00:18]} 41. Qe8 {[%clk
00:00:36]} {[%emt 00:01:25]} Re7 {[%clk 00:03:48]} {[%emt 00:04:06]} 42. Qa8
{[%clk 00:26:13]} {[%emt 00:04:53]} Ne5 {[%clk 00:33:08]} {[%emt 00:01:10]} 43.
Qc8 {[%clk 00:14:36]} {[%emt 00:12:07]} Rc7 {[%clk 00:16:54]} {[%emt 00:16:44]}
44. Qxe6 {[%clk 00:12:05]} {[%emt 00:03:02]} Qxe6 {[%clk 00:17:15]} {[%emt
00:00:08]} 45. Bxe6 {[%clk 00:12:31]} {[%emt 00:00:03]} c4 {[%clk 00:17:37]}
{[%emt 00:00:09]} 46. Bxf5 {[%clk 00:12:09]} {[%emt 00:00:53]} c3 {[%clk
00:16:57]} {[%emt 00:01:10]} 47. Bc2 {[%clk 00:10:05]} {[%emt 00:02:30]} Nc4
{[%clk 00:15:12]} {[%emt 00:02:19]} 48. Rg4+ {[%clk 00:08:50]} {[%emt
00:01:43]} Kf8 {[%clk 00:14:17]} {[%emt 00:01:26]} 49. Bb3 {[%clk 00:06:09]}
{[%emt 00:03:51]} Na3 {[%clk 00:13:38]} {[%emt 00:04:51]} 50. Rxb4 {[%clk
00:04:23]} c2 51. Bxc2 {[%clk 00:04:51]} Rxc2 {[%clk 00:14:12]} 52. Rb6 {[%clk
00:04:39]} Kf7 {[%clk 00:14:06]} 53. Ra6 {[%clk 00:04:50]} Rxa2 {[%clk
00:14:15]} {[%emt 00:00:16]} 54. Kg2 {[%clk 00:05:12]} {[%emt 00:00:07]} Ra1
{[%clk 00:14:36]} {[%emt 00:00:10]} 55. h4 {[%clk 00:04:45]} {[%emt 00:00:56]}
h5 {[%clk 00:14:27]} {[%emt 00:00:38]} 56. Ra7+ {[%clk 00:02:06]} {[%emt
00:03:10]} Kg6 {[%clk 00:14:36]} {[%emt 00:00:21]} 57. Ra8 {[%clk 00:00:49]}
{[%emt 00:01:47]} Nc2 {[%clk 00:14:31]} {[%emt 00:00:34]} 58. Rg8+ {[%clk
00:00:46]} {[%emt 00:00:33]} Kh7 {[%clk 00:14:42]} {[%emt 00:00:19]} 59. Rf8
{[%clk 00:01:10]} {[%emt 00:00:07]} Kg7 {[%clk 00:15:06]} {[%emt 00:00:06]} 60.
Rc8 {[%clk 00:01:36]} {[%emt 00:00:03]} Ne1+ {[%clk 00:14:11]} {[%emt
00:01:25]} 61. Kf1 {[%clk 00:01:15]} {[%emt 00:00:51]} Nd3+ {[%clk 00:14:11]}
{[%emt 00:00:29]} 62. Ke2 {[%clk 00:01:37]} {[%emt 00:00:08]} Ne5 {[%clk
00:14:29]} {[%emt 00:00:12]} 63. Rc2 {[%clk 00:01:19]} {[%emt 00:00:46]} Kg6
{[%clk 00:14:24]} {[%emt 00:00:37]} 64. Rd2 {[%clk 00:01:00]} {[%emt 00:00:48]}
Kf5 {[%clk 00:14:09]} {[%emt 00:00:46]} 65. Rd4 {[%clk 00:00:56]} {[%emt
00:00:34]} Ra2+ {[%clk 00:14:09]} {[%emt 00:00:30]} 66. Kf1 {[%clk 00:01:18]}
{[%emt 00:00:08]} Ng4 {[%clk 00:12:32]} {[%emt 00:02:08]} 67. Rf4+ {[%clk
00:01:35]} {[%emt 00:00:13]} Ke5 {[%clk 00:12:44]} {[%emt 00:00:17]} 68. Kg1
{[%clk 00:01:50]} {[%emt 00:00:13]} Re2 {[%clk 00:11:25]} {[%emt 00:01:49]} 69.
Kg2 {[%clk 00:01:18]} {[%emt 00:01:02]} f5 {[%clk 00:09:30]} {[%emt 00:02:27]}
70. Kg1 {[%clk 00:01:31]} {[%emt 00:00:17]} Rd2 {[%clk 00:08:29]} {[%emt
00:01:31]} 71. Kg2 {[%clk 00:01:03]} {[%emt 00:00:57]} Ne3+ {[%clk 00:08:17]}
{[%emt 00:00:43]} 72. Kf3 {[%clk 00:00:48]} {[%emt 00:00:45]} Nd1 {[%clk
00:07:13]} {[%emt 00:01:34]} 73. Kg2 {[%clk 00:01:00]} {[%emt 00:00:18]} Nc3
{[%clk 00:07:20]} {[%emt 00:00:22]} 74. Rf3 {[%clk 00:00:37]} {[%emt 00:00:53]}
Ne4 {[%clk 00:07:05]} {[%emt 00:00:45]} 75. Rf4 {[%clk 00:00:51]} {[%emt
00:00:12]} Rd4 {[%clk 00:06:40]} {[%emt 00:00:59]} 76. Rf3 {[%clk 00:00:56]}
{[%emt 00:00:24]} Nf6 {[%clk 00:05:40]} {[%emt 00:01:32]} 77. Ra3 {[%clk
00:00:42]} {[%emt 00:00:42]} Nd5 {[%clk 00:05:32]} {[%emt 00:00:40]} 78. Ra2
{[%clk 00:00:40]} {[%emt 00:00:32]} f4 {[%clk 00:05:45]} {[%emt 00:00:16]} 79.
gxf4+ {[%clk 00:00:34]} {[%emt 00:00:36]} Kxf4 {[%clk 00:06:02]} {[%emt
00:00:13]} 80. f3 {[%clk 00:00:36]} {[%emt 00:00:28]} Ne3+ {[%clk 00:06:17]}
{[%emt 00:00:15]} 81. Kf2 {[%clk 00:00:53]} {[%emt 00:00:12]} Nf5 {[%clk
00:06:39]} {[%emt 00:00:08]} 82. Ra5 {[%clk 00:01:03]} {[%emt 00:00:20]} Rd2+
{[%clk 00:06:21]} {[%emt 00:00:48]} 83. Kg1 {[%clk 00:01:03]} {[%emt 00:00:30]}
Kg3 {[%clk 00:06:07]} {[%emt 00:00:45]} 84. Kf1 {[%clk 00:01:27]} {[%emt
00:00:04]} Rf2+ {[%clk 00:06:25]} {[%emt 00:00:14]} 85. Kg1 {[%clk 00:01:11]}
{[%emt 00:00:45]} Rxf3 {[%clk 00:06:40]} {[%emt 00:00:15]} 0-1

[Event "Swedish Chess Championship 2019: Veteran-SM 65+"]
[Site "Stiga Sports Arena, Arenatorget 1, Eskilstuna, Sweden"]
[Date "2019.07.06"]
[Round "1.3"]
[White "Eriksson, Mats"]
[Black "Moborn, Anders"]
[Result "1/2-1/2"]
[TimeControl "90 minutes for 40 moves + 30 minutes for the rest of the game + 30 seconds per move from move one"]
[WhiteFideId "1700936"]
[BlackFideId "1706349"]
[WhiteElo "1961"]
[BlackElo "2034"]

1. e4 {[%clk 01:30:41]} {[%emt 00:00:18]} c5 {[%clk 01:29:41]} {[%emt
00:01:20]} 2. c3 {[%clk 01:30:53]} {[%emt 00:00:16]} e6 {[%clk 01:28:23]}
{[%emt 00:01:50]} 3. d4 {[%clk 01:31:03]} {[%emt 00:00:19]} d5 {[%clk
01:28:17]} {[%emt 00:00:36]} 4. exd5 {[%clk 01:30:22]} {[%emt 00:01:10]} Qxd5
{[%clk 01:24:31]} {[%emt 00:04:17]} 5. Nf3 {[%emt 00:01:40]} Nc6 {[%clk
01:24:09]} {[%emt 00:00:49]} 6. Bd3 {[%clk 01:25:09]} {[%emt 00:04:34]} Nf6
{[%clk 01:21:52]} {[%emt 00:02:49]} 7. O-O {[%clk 01:24:12]} {[%emt 00:01:25]}
Be7 {[%clk 01:20:01]} {[%emt 00:02:23]} 8. Be3 {[%clk 01:21:22]} {[%emt
00:03:19]} cxd4 {[%clk 01:19:08]} {[%emt 00:01:24]} 9. cxd4 {[%clk 01:20:55]}
{[%emt 00:00:57]} O-O {[%clk 01:19:14]} {[%emt 00:00:25]} 10. Nc3 {[%clk
01:20:38]} {[%emt 00:00:46]} Qa5 {[%clk 01:18:44]} {[%emt 00:01:00]} 11. a3
{[%clk 01:18:45]} {[%emt 00:02:22]} Nd5 {[%clk 01:13:28]} {[%emt 00:05:46]} 12.
Bd2 {[%clk 01:13:13]} {[%emt 00:06:01]} Nxc3 {[%clk 01:12:33]} {[%emt
00:01:27]} 13. Bxc3 {[%clk 01:13:29]} {[%emt 00:00:14]} Qh5 {[%clk 01:10:04]}
{[%emt 00:02:59]} 14. Be2 {[%clk 01:11:55]} {[%emt 00:02:02]} Qd5 {[%clk
01:06:30]} {[%emt 00:04:04]} 15. Re1 {[%clk 01:08:44]} {[%emt 00:03:41]} Rd8
{[%clk 01:04:00]} {[%emt 00:03:00]} 16. Qc2 {[%clk 01:05:52]} {[%emt 00:03:23]}
Bf6 {[%clk 00:59:06]} {[%emt 00:05:24]} 17. Rad1 {[%clk 01:03:00]} {[%emt
00:03:22]} Bd7 {[%clk 00:55:54]} {[%emt 00:03:43]} 18. Qd2 {[%clk 00:59:45]}
{[%emt 00:03:44]} Be8 {[%clk 00:49:16]} {[%emt 00:07:10]} 19. Qe3 {[%emt
00:08:51]} 1/2-1/2

[Event "Swedish Chess Championship 2019: Veteran-SM 65+"]
[Site "Stiga Sports Arena, Arenatorget 1, Eskilstuna, Sweden"]
[Date "2019.07.06"]
[Round "1.4"]
[White "Adolfsson, Kjell"]
[Black "Wedin, Svante"]
[Result "1/2-1/2"]
[TimeControl "90 minutes for 40 moves + 30 minutes for the rest of the game + 30 seconds per move from move one"]
[WhiteFideId "1714961"]
[BlackFideId "1711989"]
[WhiteElo "1895"]
[BlackElo "2003"]

1. Nc3 {[%clk 01:30:56]} {[%emt 00:00:03]} c5 {[%clk 01:30:15]} {[%emt
00:00:45]} 2. Nf3 {[%clk 01:31:12]} {[%emt 00:00:13]} Nc6 {[%clk 01:29:06]}
{[%emt 00:01:40]} 3. d4 {[%clk 01:31:33]} {[%emt 00:00:08]} cxd4 {[%clk
01:29:30]} {[%emt 00:00:06]} 4. Nxd4 {[%clk 01:31:56]} {[%emt 00:00:07]} d5
{[%clk 01:27:39]} {[%emt 00:02:22]} 5. Bf4 {[%clk 01:28:39]} {[%emt 00:03:46]}
Nf6 {[%clk 01:21:52]} {[%emt 00:06:18]} 6. e3 {[%clk 01:20:57]} {[%emt
00:08:12]} e6 {[%clk 01:18:17]} {[%emt 00:04:06]} 7. Bb5 {[%clk 01:12:59]}
{[%emt 00:08:27]} Bd7 {[%clk 01:15:04]} {[%emt 00:03:44]} 8. O-O {[%clk
01:09:10]} {[%emt 00:04:18]} Be7 {[%clk 01:10:47]} {[%emt 00:04:47]} 9. Re1
{[%clk 00:59:39]} {[%emt 00:10:01]} O-O {[%clk 01:03:50]} {[%emt 00:07:28]} 10.
Nxc6 {[%clk 00:51:37]} {[%emt 00:08:31]} Bxc6 {[%clk 00:49:36]} {[%emt
00:14:46]} 11. Bxc6 {[%clk 00:48:24]} {[%emt 00:03:42]} bxc6 {[%clk 00:50:04]}
{[%emt 00:00:03]} 12. Qf3 {[%clk 00:48:09]} {[%emt 00:00:44]} Qb6 {[%clk
00:46:00]} {[%emt 00:04:35]} 13. Na4 {[%clk 00:40:17]} {[%emt 00:08:21]} Qb4
{[%clk 00:44:54]} {[%emt 00:01:36]} 14. b3 {[%clk 00:38:56]} {[%emt 00:01:50]}
Ne4 {[%clk 00:42:25]} {[%emt 00:03:00]} 15. Be5 {[%clk 00:31:14]} {[%emt
00:08:11]} f6 {[%clk 00:38:43]} {[%emt 00:04:13]} 16. Bb2 {[%clk 00:28:16]}
{[%emt 00:03:27]} c5 {[%clk 00:34:39]} {[%emt 00:04:34]} 17. Qg4 {[%clk
00:24:21]} {[%emt 00:04:24]} Kf7 {[%clk 00:32:54]} {[%emt 00:02:16]} 18. f3
{[%clk 00:22:03]} {[%emt 00:02:47]} Nd6 {[%clk 00:32:59]} {[%emt 00:00:26]} 19.
Qh5+ {[%clk 00:18:06]} {[%emt 00:04:27]} Kg8 {[%clk 00:27:42]} {[%emt
00:05:48]} 20. a3 {[%clk 00:17:13]} {[%emt 00:01:23]} Qa5 {[%clk 00:27:11]}
{[%emt 00:01:00]} 21. Qg4 {[%clk 00:16:37]} {[%emt 00:01:06]} Kf7 {[%clk
00:21:35]} {[%emt 00:06:07]} 1/2-1/2

[Event "Swedish Chess Championship 2019: Veteran-SM 65+"]
[Site "Stiga Sports Arena, Arenatorget 1, Eskilstuna, Sweden"]
[Date "2019.07.06"]
[Round "1.5"]
[White "Gajic, Zoran"]
[Black "Amnell, Mats"]
[Result "1-0"]
[TimeControl "90 minutes for 40 moves + 30 minutes for the rest of the game + 30 seconds per move from move one"]
[WhiteFideId "1718304"]
[BlackFideId "1717316"]
[WhiteElo "1936"]
[BlackElo "1770"]

1. d4 {[%clk 01:30:56]} {[%emt 00:00:03]} Nf6 {[%clk 01:30:22]} {[%emt
00:00:39]} 2. Bg5 {[%clk 01:31:15]} {[%emt 00:00:11]} e6 {[%clk 01:29:55]}
{[%emt 00:00:57]} 3. e4 {[%clk 01:31:11]} {[%emt 00:00:34]} h6 {[%clk
01:25:45]} {[%emt 00:04:40]} 4. Bxf6 {[%clk 01:31:35]} {[%emt 00:00:06]} Qxf6
{[%clk 01:24:16]} {[%emt 00:01:59]} 5. c3 {[%clk 01:31:47]} {[%emt 00:00:18]}
d6 {[%clk 01:20:30]} {[%emt 00:04:15]} 6. Bd3 {[%clk 01:31:48]} {[%emt
00:00:29]} Nd7 {[%clk 01:09:52]} {[%emt 00:11:09]} 7. Ne2 {[%clk 01:31:42]}
{[%emt 00:00:36]} e5 {[%clk 01:03:49]} {[%emt 00:06:33]} 8. O-O {[%clk
01:31:27]} {[%emt 00:00:45]} Be7 {[%clk 00:53:11]} {[%emt 00:11:08]} 9. f4
{[%clk 01:30:15]} {[%emt 00:01:42]} exd4 {[%clk 00:51:53]} {[%emt 00:01:48]} 10.
cxd4 {[%clk 01:29:53]} {[%emt 00:00:52]} O-O {[%clk 00:49:48]} {[%emt
00:02:34]} 11. Nbc3 {[%clk 01:28:04]} {[%emt 00:02:19]} Bd8 {[%clk 00:37:12]}
{[%emt 00:13:06]} 12. Nd5 {[%clk 01:17:59]} {[%emt 00:10:36]} Qe6 {[%clk
00:35:50]} {[%emt 00:01:52]} 13. Ng3 {[%clk 01:09:37]} {[%emt 00:08:52]} c6
{[%clk 00:27:50]} {[%emt 00:08:30]} 14. f5 {[%clk 01:09:50]} {[%emt 00:00:17]}
Qe8 {[%clk 00:27:52]} {[%emt 00:00:28]} 15. Nf4 {[%clk 01:08:58]} {[%emt
00:01:21]} Bb6 {[%clk 00:25:01]} {[%emt 00:03:21]} 16. Bc2 {[%clk 00:55:34]}
{[%emt 00:13:54]} Nf6 {[%clk 00:21:21]} {[%emt 00:04:10]} 17. Kh1 {[%clk
00:52:36]} {[%emt 00:03:29]} Qe7 {[%clk 00:17:25]} {[%emt 00:04:26]} 18. Qd3
{[%clk 00:45:31]} {[%emt 00:07:35]} Bd7 {[%clk 00:10:07]} {[%emt 00:07:48]} 19.
Rae1 {[%clk 00:45:21]} {[%emt 00:00:40]} Bc7 {[%clk 00:05:24]} {[%emt
00:05:13]} 20. Qb3 {[%clk 00:38:07]} {[%emt 00:07:44]} Bb6 {[%clk 00:03:49]}
{[%emt 00:02:04]} 21. Ng6 {[%clk 00:38:25]} {[%emt 00:00:13]} Qd8 {[%clk
00:02:47]} {[%emt 00:01:30]} 22. Nxf8 {[%clk 00:38:46]} {[%emt 00:00:11]} Qxf8
{[%clk 00:02:44]} {[%emt 00:00:33]} 23. e5 {[%clk 00:39:11]} {[%emt 00:00:05]}
dxe5 {[%clk 00:02:18]} {[%emt 00:00:56]} 24. dxe5 {[%clk 00:39:31]} {[%emt
00:00:09]} Ng4 {[%clk 00:01:14]} {[%emt 00:01:33]} 25. Qf3 {[%clk 00:38:01]}
{[%emt 00:02:00]} Qc5 {[%clk 00:00:50]} {[%emt 00:00:55]} 26. Qxg4 {[%clk
00:36:33]} {[%emt 00:01:58]} Qxc2 {[%clk 00:01:00]} {[%emt 00:00:21]} 27. Nh5
{[%clk 00:36:53]} {[%emt 00:00:10]} g5 {[%clk 00:00:35]} {[%emt 00:00:55]} 28.
Nf6+ {[%clk 00:37:13]} {[%emt 00:00:10]} 1-0

[Event "Swedish Chess Championship 2019: Veteran-SM 65+"]
[Site "Stiga Sports Arena, Arenatorget 1, Eskilstuna, Sweden"]
[Date "2019.07.07"]
[Round "2.1"]
[White "Andersson, Kjell-Ake"]
[Black "Lagerborg, Krister"]
[Result "0-1"]
[TimeControl "90 minutes for 40 moves + 30 minutes for the rest of the game + 30 seconds per move from move one"]
[WhiteFideId "1713825"]
[BlackFideId "1712411"]
[WhiteElo "1859"]
[BlackElo "2129"]

1. c4 {[%clk 01:29:49]} {[%emt 00:01:09]} e5 {[%clk 01:30:54]} {[%emt
00:00:07]} 2. Nc3 {[%clk 01:29:41]} {[%emt 00:00:37]} d6 {[%clk 01:31:14]}
{[%emt 00:00:10]} 3. g3 {[%clk 01:29:33]} {[%emt 00:00:37]} f5 {[%clk
01:31:20]} {[%emt 00:00:25]} 4. d3 {[%clk 01:29:18]} {[%emt 00:00:45]} Nf6
{[%clk 01:31:24]} {[%emt 00:00:27]} 5. Bg2 {[%clk 01:29:08]} {[%emt 00:00:38]}
g6 {[%clk 01:31:36]} {[%emt 00:00:20]} 6. e3 {[%clk 01:28:39]} {[%emt
00:00:58]} Bg7 {[%clk 01:31:42]} {[%emt 00:00:25]} 7. Nge2 {[%clk 01:28:52]}
{[%emt 00:00:16]} O-O {[%clk 01:31:16]} {[%emt 00:00:57]} 8. O-O {[%clk
01:29:02]} {[%emt 00:00:19]} Nc6 {[%clk 01:26:53]} {[%emt 00:04:55]} 9. Rb1
{[%clk 01:28:46]} {[%emt 00:00:43]} h5 {[%clk 01:24:19]} {[%emt 00:03:05]} 10.
b4 {[%clk 01:23:43]} {[%emt 00:05:33]} h4 {[%clk 01:24:06]} {[%emt 00:00:44]}
11. b5 {[%clk 01:22:29]} {[%emt 00:01:44]} Ne7 {[%clk 01:23:56]} {[%emt
00:00:41]} 12. a4 {[%clk 01:21:08]} {[%emt 00:01:50]} hxg3 {[%clk 01:23:37]}
{[%emt 00:00:49]} 13. hxg3 {[%clk 01:17:57]} {[%emt 00:03:41]} Rb8 {[%clk
01:22:49]} {[%emt 00:01:19]} 14. Ba3 {[%clk 01:13:45]} {[%emt 00:04:41]} b6
{[%clk 01:15:18]} {[%emt 00:08:01]} 15. d4 {[%clk 01:10:13]} {[%emt 00:04:01]}
e4 {[%clk 01:12:48]} {[%emt 00:03:01]} 16. c5 {[%clk 01:10:12]} {[%emt
00:00:31]} Be6 {[%clk 01:09:56]} {[%emt 00:03:22]} 17. Qc2 {[%clk 01:07:28]}
{[%emt 00:03:12]} g5 {[%clk 01:04:41]} {[%emt 00:05:47]} 18. Nd1 {[%clk
01:02:28]} {[%emt 00:05:27]} d5 {[%clk 01:01:06]} {[%emt 00:04:08]} 19. Rc1
{[%clk 01:00:14]} {[%emt 00:02:42]} Rc8 {[%clk 01:00:57]} {[%emt 00:00:41]} 20.
Ndc3 {[%clk 01:00:15]} {[%emt 00:00:28]} Kf7 {[%clk 00:56:22]} {[%emt
00:05:05]} 21. f3 {[%clk 00:58:11]} {[%emt 00:02:34]} Rh8 {[%clk 00:51:07]}
{[%emt 00:05:46]} 22. Kf2 {[%clk 00:52:19]} {[%emt 00:06:19]} exf3 {[%clk
00:47:48]} {[%emt 00:03:51]} 23. Bxf3 {[%clk 00:52:14]} {[%emt 00:00:35]} Rh2+
{[%clk 00:45:42]} {[%emt 00:02:36]} 24. Kg1 {[%clk 00:49:10]} {[%emt 00:03:32]}
Qh8 {[%clk 00:43:50]} {[%emt 00:02:25]} 25. Qd2 {[%clk 00:38:42]} {[%emt
00:10:56]} Qh3 {[%clk 00:34:35]} {[%emt 00:09:46]} 26. Rf2 {[%clk 00:33:34]}
{[%emt 00:05:37]} Ng4 {[%clk 00:30:43]} {[%emt 00:04:24]} 27. Bg2 {[%emt
00:03:52]} Qh6 {[%emt 00:00:22]} 0-1